[Event "Zalakaros Barczay Memorial 2020"]
[Site "Zalakaros"]
[Date "2020.09.06"]
[Round "7.5"]
[White "Molnar Gabor, Roland"]
[Black "Pasztor, Ferenc"]
[Result "0-1"]
[ECO "A45"]
[WhiteElo "2051"]
[BlackElo "2231"]
[Annotator "ChessBase"]
[PlyCount "40"]
[EventDate "2020.08.31"]
[EventType "swiss"]
[EventCountry "HUN"]
[SourceTitle "playchess.com"]
[Source "ChessBase"]
[SourceQuality "1"]
[TimeControl "40/5400+30:1800+30"]

1. d4 Nf6 {[%emt 0:00:15]} 2. Bf4 {[%emt 0:00:14]} g6 {[%emt 0:00:35]} 3. Nc3 {[%emt 0:00:05]} d5 {[%emt 0:00:41]} 4. e3 {[%emt 0:00:25]} Bg7 {[%emt 0:00:54]} 5. h4 {[%emt 0:00:33]} h5 {[%emt 0:00:27]} 6. Nb5 {[%emt 0:01:17]} Na6 {[%emt 0:00:53]} 7. Nf3 {[%emt 0:00:28]} c6 {[%emt 0:05:41]} 8. Nc3 {[%emt 0:00:16]} Qb6 {[%emt 0:05:55]} 9. Na4 {[%emt 0:08:33]} Qa5+ {[%emt 0:01:04]} 10. c3 {[%emt 0:00:03]} b5 {[%emt 0:01:18]} 11. Nc5 {[%emt 0:01:28]} Nxc5 {[%emt 0:00:58]} 12. dxc5 {[%emt 0:00:01]} Ne4 {[%emt 0:06:28]} 13. Be5 {[%emt 0:02:02]} f6 {[%emt 0:01:50]} 14. Bh2 {[%emt 0:00:16]} b4 {[%emt 0:01:51]} 15. Nd4 {[%emt 0:04:11]} bxc3 {[%emt 0:02:47]} 16. Nxc6 {[%emt 0:00:31]} Qxc5 {[%emt 0:00:47]} 17. Nd4 {[%emt 0:07:12]} cxb2 {[%emt 0:03:17]} 18. Bb5+ {[%emt 0:00:58]} Kf7 {[%emt 0:02:00]} 19. Rb1 {[%emt 0:02:15]} e5 {[%emt 0:03:12]} 20. Rxb2 {[%emt 0:03:04]} Qc3+ {[%emt 0:02:17]} 0-1

[Event "Zalakaros Barczay Memorial 2020"]
[Site "Zalakaros"]
[Date "2020.09.06"]
[Round "7.7"]
[White "Somogyi, Gabor"]
[Black "Meszaros, Andras"]
[Result "0-1"]
[ECO "A15"]
[WhiteElo "1830"]
[BlackElo "2203"]
[Annotator "ChessBase"]
[PlyCount "52"]
[EventDate "2020.08.31"]
[EventType "swiss"]
[EventCountry "HUN"]
[SourceTitle "playchess.com"]
[Source "ChessBase"]
[SourceQuality "1"]
[TimeControl "40/5400+30:1800+30"]

1. c4 {[%emt 0:00:02]} Nf6 {[%emt 0:00:17]} 2. g3 {[%emt 0:00:19]} g6 {[%emt 0:00:09]} 3. Bg2 {[%emt 0:00:06]} Bg7 {[%emt 0:00:05]} 4. Nc3 {[%emt 0:00:04]} O-O {[%emt 0:00:14]} 5. e4 {[%emt 0:01:42]} d6 {[%emt 0:00:12]} 6. d4 {[%emt 0:01:25]} Nbd7 {[%emt 0:00:26]} 7. Nge2 {[%emt 0:01:31]} e5 {[%emt 0:00:16]} 8. O-O {[%emt 0:03:20]} exd4 {[%emt 0:00:19]} 9. Nxd4 {[%emt 0:00:58]} Re8 {[%emt 0:00:42]} 10. f3 {[%emt 0:08:26]} c6 {[%emt 0:07:42]} 11. Nc2 {[%emt 0:11:27]} Nb6 {[%emt 0:01:35]} 12. Qd3 {[%emt 0:11:24]} Be6 {[%emt 0:02:14]} 13. Ne3 {[%emt 0:00:27]} d5 {[%emt 0:02:24]} 14. cxd5 {[%emt 0:00:26]} cxd5 {[%emt 0:00:07]} 15. Ncxd5 {[%emt 0:07:24]} Nfxd5 {[%emt 0:02:58]} 16. Nxd5 {[%emt 0:03:25]} Nxd5 {[%emt 0:00:06]} 17. exd5 {[%emt 0:00:07]} Bxd5 {[%emt 0:00:24]} 18. Be3 {[%emt 0:05:34]} Bxb2 {[%emt 0:10:34]} 19. Rab1 {[%emt 0:04:31]} Bf6 {[%emt 0:01:15]} 20. Bf2 {[%emt 0:00:27]} Bc6 {[%emt 0:05:15]} 21. Qxd8 {[%emt 0:03:30]} Raxd8 {[%emt 0:00:18]} 22. f4 {[%emt 0:02:52]} Bxg2 {[%emt 0:00:25]} 23. Kxg2 {[%emt 0:00:01]} b6 {[%emt 0:00:44]} 24. Rfd1 {[%emt 0:02:12]} Rxd1 {[%emt 0:01:28]} 25. Rxd1 {[%emt 0:00:01]} Re2 {[%emt 0:00:08]} 26. a3 {[%emt 0:00:24]} Ra2 {[%emt 0:00:22]} 0-1

[Event "Zalakaros Barczay Memorial 2020"]
[Site "Zalakaros"]
[Date "2020.09.06"]
[Round "7.8"]
[White "Bereczki, Janos"]
[Black "Bodrogi, Bendeguz"]
[Result "1/2-1/2"]
[ECO "A46"]
[WhiteElo "2099"]
[BlackElo "2078"]
[Annotator "ChessBase"]
[PlyCount "89"]
[EventDate "2020.08.31"]
[EventType "swiss"]
[EventCountry "HUN"]
[SourceTitle "playchess.com"]
[Source "ChessBase"]
[SourceQuality "1"]
[TimeControl "40/5400+30:1800+30"]

1. d4 {[%emt 0:00:53]} Nf6 {[%emt 0:00:11]} 2. Nf3 {[%emt 0:00:19]} c5 {[%emt 0:00:15]} 3. e3 {[%emt 0:00:10]} g6 {[%emt 0:01:26]} 4. b3 {[%emt 0:00:22]} Bg7 {[%emt 0:00:07]} 5. Bb2 {[%emt 0:00:08]} O-O {[%emt 0:00:59]} 6. Be2 {[%emt 0:00:21]} b6 {[%emt 0:00:20]} 7. O-O {[%emt 0:01:56]} Bb7 {[%emt 0:00:25]} 8. dxc5 {[%emt 0:03:28]} bxc5 {[%emt 0:00:16]} 9. c4 {[%emt 0:00:13]} d6 {[%emt 0:09:58]} 10. Qc1 {[%emt 0:04:59]} Nc6 {[%emt 0:09:08]} 11. Nc3 {[%emt 0:00:37]} e5 {[%emt 0:16:08]} 12. Rd1 {[%emt 0:06:10]} Qe7 {[%emt 0:02:53]} 13. a3 {[%emt 0:05:32]} a6 {[%emt 0:23:50]} 14. Rb1 {[%emt 0:05:24]} Rfd8 {[%emt 0:00:46]} 15. b4 {[%emt 0:15:51]} cxb4 {[%emt 0:02:00]} 16. axb4 {[%emt 0:01:12]} Nxb4 {[%emt 0:00:44]} 17. Ba3 {[%emt 0:00:07]} a5 {[%emt 0:00:03]} 18. Bxb4 {[%emt 0:00:31]} axb4 {[%emt 0:00:45]} 19. Rxb4 {[%emt 0:00:10]} d5 {[%emt 0:12:19]} 20. Qb2 {[%emt 0:03:35]} Bc6 {[%emt 0:01:50]} 21. Rb6 {[%emt 0:16:42]} Rac8 {[%emt 0:01:44]} 22. cxd5 {[%emt 0:07:06]} Bxd5 {[%emt 0:04:21]} 23. Nxd5 {[%emt 0:22:36]} Nxd5 {[%emt 0:00:08]} 24. Rb7 {[%emt 0:00:05]} Rc7 {[%emt 0:06:01]} 25. Rb8 {[%emt 0:00:47]} Rcd7 {[%emt 0:00:48]} 26. Rxd8+ {[%emt 0:02:33]} Rxd8 {[%emt 0:00:42]} 27. Qd2 {[%emt 0:00:35]} e4 {[%emt 0:01:15]} 28. Bc4 {[%emt 0:00:44]} exf3 {[%emt 0:00:42]} 29. Bxd5 {[%emt 0:00:03]} Bf6 {[%emt 0:01:36]} 30. gxf3 {[%emt 0:00:27]} Kg7 {[%emt 0:00:11]} 31. Qc2 {[%emt 0:00:31]} Qe5 {[%emt 0:00:49]} 32. Qc4 {[%emt 0:01:10]} Qc3 {[%emt 0:02:05]} 33. Qxc3 {[%emt 0:00:15]} Bxc3 {[%emt 0:00:06]} 34. Kf1 {[%emt 0:00:10]} Rd7 {[%emt 0:00:32]} 35. Ke2 {[%emt 0:00:19]} g5 {[%emt 0:01:17]} 36. Bc4 {[%emt 0:00:47]} Rxd1 {[%emt 0:00:09]} 37. Kxd1 {[%emt 0:00:02]} Be5 {[%emt 0:00:30]} 38. h3 {[%emt 0:00:14]} f5 {[%emt 0:00:23]} 39. Be6 {[%emt 0:01:09]} Kf6 {[%emt 0:00:06]} 40. Bd7 {[%emt 0:00:00]} h6 {[%emt 0:00:00]} 41. Ke2 {[%emt 0:00:33]} f4 {[%emt 0:04:54]} 42. Kd3 {[%emt 0:00:30]} h5 {[%emt 0:01:25]} 43. h4 {[%emt 0:04:03]} gxh4 {[%emt 0:00:18]} 44. Ke4 {[%emt 0:00:08]} Bb8 {[%emt 0:00:10]} 45. exf4 {[%emt 0:02:28]} 1/2-1/2

[Event "Zalakaros Barczay Memorial 2020"]
[Site "Zalakaros"]
[Date "2020.09.06"]
[Round "7.9"]
[White "Dlauchy, Peter"]
[Black "Boronyak, Arpad"]
[Result "0-1"]
[ECO "B33"]
[WhiteElo "1690"]
[BlackElo "2120"]
[Annotator "ChessBase"]
[PlyCount "66"]
[EventDate "2020.08.31"]
[EventType "swiss"]
[EventCountry "HUN"]
[SourceTitle "playchess.com"]
[Source "ChessBase"]
[SourceQuality "1"]
[TimeControl "40/5400+30:1800+30"]

1. e4 {[%emt 0:00:30]} c5 {[%emt 0:00:03]} 2. Nf3 {[%emt 0:00:00]} e6 {[%emt 0:00:09]} 3. d4 {[%emt 0:00:00]} cxd4 {[%emt 0:00:09]} 4. Nxd4 {[%emt 0:00:02]} Nf6 {[%emt 0:00:08]} 5. Nc3 {[%emt 0:00:07]} Nc6 {[%emt 0:00:27]} 6. Ndb5 {[%emt 0:00:37]} d6 {[%emt 0:00:42]} 7. Bf4 {[%emt 0:00:28]} e5 {[%emt 0:00:16]} 8. Bg5 {[%emt 0:00:10]} a6 {[%emt 0:00:06]} 9. Bxf6 {[%emt 0:00:52]} gxf6 {[%emt 0:00:11]} 10. Na3 {[%emt 0:00:11]} b5 {[%emt 0:01:42]} 11. Nd5 {[%emt 0:00:15]} f5 {[%emt 0:00:22]} 12. exf5 {[%emt 0:01:19]} Bxf5 {[%emt 0:02:08]} 13. c3 {[%emt 0:00:22]} Bg7 {[%emt 0:00:58]} 14. Nc2 {[%emt 0:00:14]} O-O {[%emt 0:00:42]} 15. Nce3 {[%emt 0:00:25]} Be6 {[%emt 0:00:10]} 16. g3 {[%emt 0:06:34]} f5 {[%emt 0:02:25]} 17. Bg2 {[%emt 0:01:04]} Rb8 {[%emt 0:01:01]} 18. O-O {[%emt 0:01:08]} Ne7 {[%emt 0:04:08]} 19. Nxe7+ {[%emt 0:08:05]} Qxe7 {[%emt 0:01:03]} 20. Bd5 {[%emt 0:01:15]} Kh8 {[%emt 0:01:37]} 21. Bxe6 {[%emt 0:08:26]} Qxe6 {[%emt 0:00:12]} 22. Qd5 {[%emt 0:07:05]} Qg6 {[%emt 0:01:00]} 23. Rad1 {[%emt 0:04:03]} f4 {[%emt 0:07:13]} 24. Ng2 {[%emt 0:03:51]} Rbd8 {[%emt 0:05:40]} 25. Kh1 {[%emt 0:04:20]} fxg3 {[%emt 0:22:30]} 26. fxg3 {[%emt 0:00:43]} Rxf1+ {[%emt 0:02:58]} 27. Rxf1 {[%emt 0:00:23]} Qc2 {[%emt 0:01:28]} 28. Qb3 {[%emt 0:15:50]} Qxb3 {[%emt 0:00:37]} 29. axb3 {[%emt 0:00:01]} d5 {[%emt 0:00:08]} 30. Nh4 {[%emt 0:02:04]} d4 {[%emt 0:00:46]} 31. cxd4 {[%emt 0:00:39]} exd4 {[%emt 0:00:09]} 32. Rd1 {[%emt 0:01:44]} d3 {[%emt 0:00:16]} 33. Rd2 {[%emt 0:01:18]} Bxb2 {[%emt 0:00:12]} 0-1

[Event "Zalakaros Barczay Memorial 2020"]
[Site "Zalakaros"]
[Date "2020.09.06"]
[Round "7.10"]
[White "Herbold, Manfred"]
[Black "Ilyes, Peter"]
[Result "0-1"]
[ECO "C02"]
[WhiteElo "2063"]
[BlackElo "1902"]
[Annotator "ChessBase"]
[PlyCount "80"]
[EventDate "2020.08.31"]
[EventType "swiss"]
[EventCountry "HUN"]
[SourceTitle "playchess.com"]
[Source "ChessBase"]
[SourceQuality "1"]
[TimeControl "40/5400+30:1800+30"]

1. e4 {[%emt 0:00:11]} e6 {[%emt 0:00:07]} 2. d4 {[%emt 0:00:46]} d5 {[%emt 0:00:09]} 3. e5 {[%emt 0:00:06]} c5 {[%emt 0:00:11]} 4. Qg4 {[%emt 0:00:10]} cxd4 {[%emt 0:02:55]} 5. Nf3 {[%emt 0:00:14]} Nc6 {[%emt 0:00:44]} 6. Bd3 {[%emt 0:00:13]} f5 {[%emt 0:08:05]} 7. Qg3 {[%emt 0:00:13]} Qa5+ {[%emt 0:19:39]} 8. Nbd2 {[%emt 0:00:56]} Nh6 {[%emt 0:02:02]} 9. O-O {[%emt 0:00:40]} Nf7 {[%emt 0:01:16]} 10. h4 {[%emt 0:04:10]} g6 {[%emt 0:15:43]} 11. Re1 {[%emt 0:05:00]} Be7 {[%emt 0:07:31]} 12. a3 {[%emt 0:02:35]} Bd7 {[%emt 0:02:33]} 13. b4 {[%emt 0:01:04]} Qa4 {[%emt 0:04:56]} 14. Nb3 {[%emt 0:01:39]} a5 {[%emt 0:01:47]} 15. Bd2 {[%emt 0:02:22]} O-O-O {[%emt 0:03:23]} 16. Reb1 {[%emt 0:03:00]} b6 {[%emt 0:01:11]} 17. bxa5 {[%emt 0:04:45]} bxa5 {[%emt 0:01:43]} 18. Nxa5 {[%emt 0:02:10]} Nxa5 {[%emt 0:00:26]} 19. Ba6+ {[%emt 0:01:25]} Kc7 {[%emt 0:00:12]} 20. Bxa5+ {[%emt 0:00:40]} Qxa5 {[%emt 0:00:12]} 21. Rb7+ {[%emt 0:00:44]} Kc8 {[%emt 0:00:59]} 22. Rb3+ {[%emt 0:11:51]} Qxa6 {[%emt 0:00:16]} 23. Nxd4 {[%emt 0:00:17]} Ba4 {[%emt 0:02:04]} 24. Rb2 {[%emt 0:05:14]} Kd7 {[%emt 0:01:00]} 25. Rab1 {[%emt 0:00:17]} Bc5 {[%emt 0:03:14]} 26. Nf3 {[%emt 0:03:22]} Rc8 {[%emt 0:04:16]} 27. h5 {[%emt 0:04:51]} Rhg8 {[%emt 0:02:14]} 28. hxg6 {[%emt 0:01:26]} Rxg6 {[%emt 0:00:27]} 29. Qh4 {[%emt 0:01:18]} Rh6 {[%emt 0:03:58]} 30. Qg3 {[%emt 0:00:51]} Rg6 {[%emt 0:00:02]} 31. Qh4 {[%emt 0:00:13]} h6 {[%emt 0:01:33]} 32. Qh5 {[%emt 0:00:33]} Rg7 {[%emt 0:00:39]} 33. Nh4 {[%emt 0:01:38]} Rc7 {[%emt 0:05:08]} 34. Nxf5 {[%emt 0:00:20]} exf5 {[%emt 0:00:11]} 35. Qxf5+ {[%emt 0:00:09]} Qe6 {[%emt 0:00:27]} 36. Qf4 {[%emt 0:00:21]} Bc6 {[%emt 0:00:49]} 37. Re1 {[%emt 0:00:40]} Rb7 {[%emt 0:00:58]} 38. Rxb7+ {[%emt 0:00:40]} Bxb7 {[%emt 0:00:02]} 39. Qa4+ {[%emt 0:00:10]} Kc7 {[%emt 0:01:54]} 40. Qa5+ {[%emt 0:00:00]} Bb6 {[%emt 0:00:00]} 0-1

[Event "Zalakaros Barczay Memorial 2020"]
[Site "Zalakaros"]
[Date "2020.09.06"]
[Round "7.11"]
[White "Deak, Laszlo"]
[Black "Metaxasz, Vaszilisz"]
[Result "1/2-1/2"]
[ECO "B31"]
[WhiteElo "1890"]
[BlackElo "2039"]
[Annotator "ChessBase"]
[PlyCount "27"]
[EventDate "2020.08.31"]
[EventType "swiss"]
[EventCountry "HUN"]
[SourceTitle "playchess.com"]
[Source "ChessBase"]
[SourceQuality "1"]
[TimeControl "40/5400+30:1800+30"]

1. e4 {[%emt 0:01:12]} c5 {[%emt 0:00:06]} 2. Nf3 {[%emt 0:00:10]} Nc6 {[%emt 0:01:54]} 3. Bb5 {[%emt 0:00:10]} g6 {[%emt 0:00:49]} 4. O-O {[%emt 0:09:08]} Bg7 {[%emt 0:00:22]} 5. c3 {[%emt 0:01:44]} Nf6 {[%emt 0:05:35]} 6. Qe2 {[%emt 0:09:29]} O-O {[%emt 0:03:05]} 7. Na3 {[%emt 0:07:01]} a6 {[%emt 0:06:11]} 8. Bxc6 {[%emt 0:01:46]} bxc6 {[%emt 0:02:50]} 9. d3 {[%emt 0:02:52]} d6 {[%emt 0:02:02]} 10. h3 {[%emt 0:01:10]} Qc7 {[%emt 0:06:18]} 11. Bf4 {[%emt 0:07:04]} e5 {[%emt 0:01:27]} 12. Bg5 {[%emt 0:04:47]} Nh5 {[%emt 0:10:47]} 13. g4 {[%emt 0:06:20]} f6 14. Be3 1/2-1/2